[Event "Early-Titled-Tuesday-Blitz-April-16-2024"]
[Site "Chess.com"]
[Date "2024.04.16"]
[Round "3"]
[White "AlmasRakhmatullaev"]
[Black "amanjazu"]
[Result "1-0"]
[WhiteElo "2865"]
[BlackElo "2530"]
[TimeControl "180+1"]
[EndTime "8:29:03 PDT"]
[Termination "AlmasRakhmatullaev won on time"]

1. e4 {[%clk 0:03:00.9]} 1... Nf6 {[%clk 0:02:48.5]} 2. Nc3 {[%clk 0:03:00.2]}
2... d5 {[%clk 0:02:47.1]} 3. e5 {[%clk 0:03:00.5]} 3... Nfd7 {[%clk 0:02:47.4]}
4. f4 {[%clk 0:02:59.4]} 4... e6 {[%clk 0:02:44.4]} 5. Nf3 {[%clk 0:03:00]} 5...
c5 {[%clk 0:02:44]} 6. g3 {[%clk 0:03:00.5]} 6... Nc6 {[%clk 0:02:43.9]} 7. Bg2
{[%clk 0:03:01.2]} 7... Be7 {[%clk 0:02:30.8]} 8. O-O {[%clk 0:03:01.2]} 8...
O-O {[%clk 0:02:31.3]} 9. d3 {[%clk 0:03:01.7]} 9... f6 {[%clk 0:02:31.4]} 10.
exf6 {[%clk 0:03:01.2]} 10... Nxf6 {[%clk 0:02:32.3]} 11. Kh1 {[%clk 0:03:01.2]}
11... d4 {[%clk 0:01:40.1]} 12. Ne4 {[%clk 0:02:55.4]} 12... Nxe4 {[%clk
0:01:32.3]} 13. dxe4 {[%clk 0:02:56.3]} 13... e5 {[%clk 0:01:27.6]} 14. f5
{[%clk 0:02:55.8]} 14... b6 {[%clk 0:01:27.7]} 15. Qe2 {[%clk 0:02:54.7]} 15...
a5 {[%clk 0:01:24.3]} 16. Rd1 {[%clk 0:02:53.5]} 16... Ba6 {[%clk 0:01:23.4]}
17. Qf2 {[%clk 0:02:54.2]} 17... c4 {[%clk 0:01:13.9]} 18. g4 {[%clk 0:02:51.7]}
18... Qc7 {[%clk 0:01:08.5]} 19. Qg3 {[%clk 0:02:50.7]} 19... Nb4 {[%clk
0:00:57.7]} 20. c3 {[%clk 0:02:41.6]} 20... dxc3 {[%clk 0:00:36.9]} 21. bxc3
{[%clk 0:02:42.5]} 21... Nd3 {[%clk 0:00:37.4]} 22. Be3 {[%clk 0:02:39]} 22...
Bc5 {[%clk 0:00:37.4]} 23. Bxc5 {[%clk 0:02:13.6]} 23... Qxc5 {[%clk 0:00:38.3]}
24. Rf1 {[%clk 0:02:13.7]} 24... Qe3 {[%clk 0:00:20.9]} 25. Qh4 {[%clk
0:02:11.8]} 25... Bb7 {[%clk 0:00:17.5]} 26. Rae1 {[%clk 0:01:51.6]} 26... Nxe1
{[%clk 0:00:10.9]} 27. Rxe1 {[%clk 0:01:52.5]} 27... Qxc3 {[%clk 0:00:10.8]} 28.
Ng5 {[%clk 0:01:48.1]} 28... h6 {[%clk 0:00:10.8]} 29. Ne6 {[%clk 0:01:48.3]}
29... Rf6 {[%clk 0:00:08.9]} 30. Rg1 {[%clk 0:01:35.5]} 30... Bc8 {[%clk
0:00:08.4]} 31. g5 {[%clk 0:01:14.8]} 31... hxg5 {[%clk 0:00:08.7]} 32. Nxg5
{[%clk 0:01:15.5]} 32... Rh6 {[%clk 0:00:08.4]} 33. Qg4 {[%clk 0:01:15.2]} 33...
Ra7 {[%clk 0:00:08.2]} 34. Bf3 {[%clk 0:01:11.4]} 34... Qd2 {[%clk 0:00:06.3]}
35. Qg3 {[%clk 0:01:11.7]} 35... Qf4 {[%clk 0:00:05.3]} 36. Qf2 {[%clk
0:01:09.1]} 36... c3 {[%clk 0:00:04.3]} 37. Qe2 {[%clk 0:00:46]} 37... Qd2
{[%clk 0:00:04.4]} 38. Qc4+ {[%clk 0:00:45.1]} 38... Be6 {[%clk 0:00:03.8]} 39.
Be2 {[%clk 0:00:26.6]} 39... Qxe2 {[%clk 0:00:04.2]} 40. Qxe2 {[%clk 0:00:24.6]}
1-0

[Event "Early-Titled-Tuesday-Blitz-April-16-2024"]
[Site "Chess.com"]
[Date "2024.04.16"]
[Round "3"]
[White "WilsonPalencia21"]
[Black "VinzentSpitzl"]
[Result "0-1"]
[WhiteElo "2599"]
[BlackElo "2453"]
[TimeControl "180+1"]
[EndTime "8:29:04 PDT"]
[Termination "VinzentSpitzl won by resignation"]

1. d4 {[%clk 0:02:51.3]} 1... Nf6 {[%clk 0:02:58.5]} 2. c4 {[%clk 0:02:50.9]}
2... e6 {[%clk 0:02:58.9]} 3. Nf3 {[%clk 0:02:44]} 3... d5 {[%clk 0:02:58.6]} 4.
Nc3 {[%clk 0:02:43.2]} 4... Bb4 {[%clk 0:02:58.3]} 5. Bg5 {[%clk 0:02:43.7]}
5... h6 {[%clk 0:02:58]} 6. Bxf6 {[%clk 0:02:44.2]} 6... Qxf6 {[%clk 0:02:58.2]}
7. Qa4+ {[%clk 0:02:44.6]} 7... Nc6 {[%clk 0:02:58]} 8. e3 {[%clk 0:02:45.5]}
8... O-O {[%clk 0:02:57.1]} 9. Rc1 {[%clk 0:02:44]} 9... Bd7 {[%clk 0:02:47.6]}
10. Qc2 {[%clk 0:02:43.3]} 10... Rfe8 {[%clk 0:02:42.5]} 11. Be2 {[%clk
0:02:38.5]} 11... dxc4 {[%clk 0:02:40.3]} 12. O-O {[%clk 0:02:32.3]} 12... e5
{[%clk 0:02:39]} 13. Nd5 {[%clk 0:02:31.8]} 13... Qd6 {[%clk 0:02:32.5]} 14.
Nxb4 {[%clk 0:02:29.7]} 14... Qxb4 {[%clk 0:02:27.1]} 15. d5 {[%clk 0:02:07]}
15... Na5 {[%clk 0:02:27]} 16. Bxc4 {[%clk 0:02:01.8]} 16... Nxc4 {[%clk
0:02:26.5]} 17. Qxc4 {[%clk 0:02:00.3]} 17... Qxc4 {[%clk 0:02:26.8]} 18. Rxc4
{[%clk 0:02:00.9]} 18... Bb5 {[%clk 0:02:27.3]} 19. Rxc7 {[%clk 0:02:01.4]}
19... Bxf1 {[%clk 0:02:27.5]} 20. Kxf1 {[%clk 0:02:02.3]} 20... e4 {[%clk
0:02:20.9]} 21. Nd4 {[%clk 0:02:00.1]} 21... Red8 {[%clk 0:02:17]} 22. Nf5
{[%clk 0:01:35.1]} 22... Kf8 {[%clk 0:02:01.4]} 23. d6 {[%clk 0:01:27.7]} 23...
Rac8 {[%clk 0:01:48.5]} 24. Rxb7 {[%clk 0:01:21.9]} 24... Rb8 {[%clk 0:01:48.7]}
25. Rxb8 {[%clk 0:01:17.1]} 25... Rxb8 {[%clk 0:01:48.5]} 26. b3 {[%clk
0:01:17.5]} 26... Rb5 {[%clk 0:01:34]} 27. g4 {[%clk 0:01:11.3]} 27... h5 {[%clk
0:01:19.4]} 28. h3 {[%clk 0:01:08.8]} 28... hxg4 {[%clk 0:01:14.9]} 29. hxg4
{[%clk 0:01:09.7]} 29... g6 {[%clk 0:01:15]} 30. Ne7 {[%clk 0:00:24]} 30... Ke8
{[%clk 0:01:06.4]} 31. Nc6 {[%clk 0:00:18.6]} 31... a6 {[%clk 0:01:01.5]} 32.
Nd4 {[%clk 0:00:14.8]} 32... Rd5 {[%clk 0:00:55.9]} 33. Ke2 {[%clk 0:00:13.2]}
33... Rxd6 {[%clk 0:00:53.8]} 34. Kd2 {[%clk 0:00:12.5]} 34... Kd7 {[%clk
0:00:51.3]} 35. b4 {[%clk 0:00:12.3]} 35... f5 {[%clk 0:00:41.2]} 36. gxf5
{[%clk 0:00:12.2]} 36... gxf5 {[%clk 0:00:41.5]} 37. Kc3 {[%clk 0:00:12.7]}
37... Rf6 {[%clk 0:00:36.5]} 38. f4 {[%clk 0:00:12.3]} 38... exf3 {[%clk
0:00:34]} 39. Nxf3 {[%clk 0:00:12.3]} 39... Kd6 {[%clk 0:00:31.1]} 40. Kd4
{[%clk 0:00:11.2]} 40... Rh6 {[%clk 0:00:30.3]} 41. a4 {[%clk 0:00:10]} 41...
Rh3 {[%clk 0:00:28.9]} 42. Nd2 {[%clk 0:00:09.3]} 42... Rh4+ {[%clk 0:00:28.4]}
43. Kc3 {[%clk 0:00:09.9]} 43... Kd5 {[%clk 0:00:25.9]} 44. Nb3 {[%clk 0:00:05]}
44... Rh3 {[%clk 0:00:23.7]} 45. Kd3 {[%clk 0:00:02.9]} 45... f4 {[%clk
0:00:23.6]} 46. Nd2 {[%clk 0:00:01.8]} 46... Rxe3+ {[%clk 0:00:22.3]} 0-1

[Event "Early-Titled-Tuesday-Blitz-April-16-2024"]
[Site "Chess.com"]
[Date "2024.04.16"]
[Round "3"]
[White "flawian2008"]
[Black "C_K_G"]
[Result "1-0"]
[WhiteElo "2565"]
[BlackElo "2286"]
[TimeControl "180+1"]
[EndTime "8:29:06 PDT"]
[Termination "flawian2008 won on time"]

1. d4 {[%clk 0:03:00.9]} 1... d5 {[%clk 0:02:57]} 2. c4 {[%clk 0:03:00.9]} 2...
e6 {[%clk 0:02:57.5]} 3. Nf3 {[%clk 0:03:00.7]} 3... Nf6 {[%clk 0:02:58.1]} 4.
g3 {[%clk 0:03:01.2]} 4... c6 {[%clk 0:02:58.6]} 5. Nbd2 {[%clk 0:02:59.2]} 5...
Nbd7 {[%clk 0:02:59]} 6. Bg2 {[%clk 0:02:59.5]} 6... Bd6 {[%clk 0:02:58.5]} 7.
O-O {[%clk 0:02:57.3]} 7... O-O {[%clk 0:02:58.2]} 8. Qc2 {[%clk 0:02:57.6]}
8... b6 {[%clk 0:02:53.7]} 9. e4 {[%clk 0:02:55.4]} 9... dxe4 {[%clk 0:02:49.9]}
10. Nxe4 {[%clk 0:02:56.3]} 10... Nxe4 {[%clk 0:02:47]} 11. Qxe4 {[%clk
0:02:57.2]} 11... Bb7 {[%clk 0:02:46.6]} 12. Rd1 {[%clk 0:02:54.4]} 12... Nf6
{[%clk 0:02:41.6]} 13. Qe2 {[%clk 0:02:53.5]} 13... Qc7 {[%clk 0:02:35.7]} 14.
Bg5 {[%clk 0:02:48.7]} 14... Nd7 {[%clk 0:02:32.8]} 15. Rac1 {[%clk 0:02:37.2]}
15... c5 {[%clk 0:02:26.6]} 16. d5 {[%clk 0:02:28.2]} 16... exd5 {[%clk
0:02:15.1]} 17. cxd5 {[%clk 0:02:29.1]} 17... Rfe8 {[%clk 0:02:14]} 18. Qd2
{[%clk 0:02:22.3]} 18... Ne5 {[%clk 0:02:05]} 19. Nd4 {[%clk 0:02:15.1]} 19...
Qd7 {[%clk 0:01:39.8]} 20. Nc6 {[%clk 0:02:15.2]} 20... h6 {[%clk 0:01:18.2]}
21. Bf4 {[%clk 0:02:04.4]} 21... Ng6 {[%clk 0:01:11.2]} 22. Be3 {[%clk
0:01:57.4]} 22... a6 {[%clk 0:01:00]} 23. h4 {[%clk 0:01:56.2]} 23... Qg4 {[%clk
0:00:52.4]} 24. b3 {[%clk 0:01:44.1]} 24... f5 {[%clk 0:00:42.8]} 25. Rc4 {[%clk
0:00:45.1]} 25... f4 {[%clk 0:00:42.9]} 26. Qc2 {[%clk 0:00:36.9]} 26... b5
{[%clk 0:00:32.9]} 27. Re4 {[%clk 0:00:36.8]} 27... Rac8 {[%clk 0:00:18.5]} 28.
Bc1 {[%clk 0:00:30.5]} 28... Bxc6 {[%clk 0:00:16.7]} 29. dxc6 {[%clk 0:00:28.2]}
29... Be5 {[%clk 0:00:16.2]} 30. Qe2 {[%clk 0:00:13.9]} 30... Qxe2 {[%clk
0:00:14.5]} 31. Rxe2 {[%clk 0:00:14.8]} 31... fxg3 {[%clk 0:00:13.9]} 32. fxg3
{[%clk 0:00:13.9]} 32... Bd4+ {[%clk 0:00:14.2]} 33. Kf1 {[%clk 0:00:13.6]}
33... Rxe2 {[%clk 0:00:13.2]} 34. Kxe2 {[%clk 0:00:14.5]} 34... Re8+ {[%clk
0:00:13.3]} 35. Kd3 {[%clk 0:00:11.8]} 35... Ne5+ {[%clk 0:00:10.6]} 36. Kc2
{[%clk 0:00:12.2]} 36... Ng4 {[%clk 0:00:09.1]} 37. Bf4 {[%clk 0:00:10.4]} 37...
Re2+ {[%clk 0:00:08.2]} 38. Rd2 {[%clk 0:00:11.1]} 38... Rxd2+ {[%clk
0:00:07.2]} 39. Kxd2 {[%clk 0:00:12]} 1-0

[Event "Early-Titled-Tuesday-Blitz-April-16-2024"]
[Site "Chess.com"]
[Date "2024.04.16"]
[Round "3"]
[White "H3nriqueTV"]
[Black "BashiqChess"]
[Result "1-0"]
[WhiteElo "2306"]
[BlackElo "2485"]
[TimeControl "180+1"]
[EndTime "8:29:06 PDT"]
[Termination "H3nriqueTV won by resignation"]

1. e4 {[%clk 0:03:00.9]} 1... c6 {[%clk 0:02:57.6]} 2. d4 {[%clk 0:02:59]} 2...
d5 {[%clk 0:02:56.1]} 3. Nc3 {[%clk 0:02:59.6]} 3... dxe4 {[%clk 0:02:55.2]} 4.
Nxe4 {[%clk 0:02:55.7]} 4... Nf6 {[%clk 0:02:55.7]} 5. Ng3 {[%clk 0:02:56.2]}
5... h5 {[%clk 0:02:55.5]} 6. h3 {[%clk 0:02:53.1]} 6... h4 {[%clk 0:02:55.1]}
7. N3e2 {[%clk 0:02:53.1]} 7... c5 {[%clk 0:02:55.7]} 8. c3 {[%clk 0:02:52.9]}
8... Nc6 {[%clk 0:02:55.4]} 9. Nf3 {[%clk 0:02:53.2]} 9... Bf5 {[%clk
0:02:54.6]} 10. Be3 {[%clk 0:02:51.6]} 10... e6 {[%clk 0:02:49.4]} 11. dxc5
{[%clk 0:02:46.6]} 11... Ne4 {[%clk 0:02:49.6]} 12. Ned4 {[%clk 0:02:43.6]}
12... Be7 {[%clk 0:02:38]} 13. Bb5 {[%clk 0:02:39.3]} 13... Rc8 {[%clk
0:02:37.2]} 14. Ne5 {[%clk 0:02:34.9]} 14... O-O {[%clk 0:01:53.3]} 15. Bxc6
{[%clk 0:02:16]} 15... bxc6 {[%clk 0:01:46.1]} 16. Nexc6 {[%clk 0:02:16.3]}
16... Qc7 {[%clk 0:01:44.3]} 17. Nxe7+ {[%clk 0:02:07.2]} 17... Qxe7 {[%clk
0:01:43.7]} 18. O-O {[%clk 0:02:03.3]} 18... Rfd8 {[%clk 0:01:30.2]} 19. Qf3
{[%clk 0:01:38.6]} 19... Bg6 {[%clk 0:01:09.8]} 20. c6 {[%clk 0:01:26.2]} 20...
Rd5 {[%clk 0:00:26.1]} 21. Rfe1 {[%clk 0:01:07.8]} 21... Nf6 {[%clk 0:00:24.9]}
22. Bc1 {[%clk 0:00:28.8]} 22... Qc7 {[%clk 0:00:14.9]} 23. Qe3 {[%clk 0:00:24]}
23... e5 {[%clk 0:00:12.1]} 24. Nf3 {[%clk 0:00:20.3]} 24... e4 {[%clk
0:00:05.3]} 25. Nxh4 {[%clk 0:00:20.2]} 25... Bh7 {[%clk 0:00:04.7]} 26. Qf4
{[%clk 0:00:18.5]} 26... Qxc6 {[%clk 0:00:04.4]} 27. Qg3 {[%clk 0:00:12.5]}
27... Rcd8 {[%clk 0:00:03.6]} 28. Bg5 {[%clk 0:00:12.4]} 28... Qe6 {[%clk
0:00:01.8]} 29. Bxf6 {[%clk 0:00:12.1]} 29... Qxf6 {[%clk 0:00:02.3]} 30. Qg4
{[%clk 0:00:09.8]} 30... Rg5 {[%clk 0:00:02.3]} 31. Qe2 {[%clk 0:00:08.8]} 31...
Re8 {[%clk 0:00:01.3]} 32. g3 {[%clk 0:00:09.1]} 32... Rge5 {[%clk 0:00:01.9]}
33. Ng2 {[%clk 0:00:09.3]} 33... g5 {[%clk 0:00:01.9]} 34. Ne3 {[%clk 0:00:10]}
34... Bg6 {[%clk 0:00:02.3]} 35. Ng4 {[%clk 0:00:10.6]} 35... Qe6 {[%clk
0:00:02.6]} 36. Nxe5 {[%clk 0:00:11.5]} 36... Qxe5 {[%clk 0:00:03.5]} 37. Qg4
{[%clk 0:00:12.2]} 37... f6 {[%clk 0:00:03.6]} 38. Rad1 {[%clk 0:00:12.1]} 38...
Kg7 {[%clk 0:00:03.7]} 39. Rd8 {[%clk 0:00:12.5]} 39... Re7 {[%clk 0:00:04]} 40.
Rd7 {[%clk 0:00:12.6]} 40... Bf5 {[%clk 0:00:04.1]} 41. Rxe7+ {[%clk 0:00:12.6]}
41... Kf8 {[%clk 0:00:04.6]} 42. Rxe5 {[%clk 0:00:12.7]} 42... Bxg4 {[%clk
0:00:05.3]} 43. hxg4 {[%clk 0:00:13.5]} 43... fxe5 {[%clk 0:00:06.2]} 44. Rxe4
{[%clk 0:00:13.9]} 1-0

[Event "Early-Titled-Tuesday-Blitz-April-16-2024"]
[Site "Chess.com"]
[Date "2024.04.16"]
[Round "3"]
[White "viditchess"]
[Black "francyIM"]
[Result "1-0"]
[WhiteElo "3135"]
[BlackElo "2808"]
[TimeControl "180+1"]
[EndTime "8:29:08 PDT"]
[Termination "viditchess won by resignation"]

1. e4 {[%clk 0:03:00.9]} 1... e6 {[%clk 0:02:59.2]} 2. d3 {[%clk 0:02:57.6]}
2... d5 {[%clk 0:02:58.4]} 3. Nd2 {[%clk 0:02:58.3]} 3... c5 {[%clk 0:02:56.4]}
4. g3 {[%clk 0:02:58.2]} 4... Nc6 {[%clk 0:02:56.5]} 5. Bg2 {[%clk 0:02:58.6]}
5... g6 {[%clk 0:02:54.9]} 6. f4 {[%clk 0:02:55.1]} 6... Bg7 {[%clk 0:02:48.5]}
7. Ngf3 {[%clk 0:02:55.4]} 7... Nge7 {[%clk 0:02:47.6]} 8. O-O {[%clk
0:02:55.5]} 8... O-O {[%clk 0:02:46.9]} 9. a4 {[%clk 0:02:55.2]} 9... Rb8 {[%clk
0:02:43.5]} 10. e5 {[%clk 0:02:47.9]} 10... a6 {[%clk 0:02:42.3]} 11. c3 {[%clk
0:02:40.9]} 11... b5 {[%clk 0:02:36.8]} 12. axb5 {[%clk 0:02:41.8]} 12... axb5
{[%clk 0:02:37.5]} 13. Qe1 {[%clk 0:02:40.8]} 13... b4 {[%clk 0:02:32.6]} 14. g4
{[%clk 0:02:36.1]} 14... bxc3 {[%clk 0:02:32.4]} 15. bxc3 {[%clk 0:02:37]} 15...
d4 {[%clk 0:02:28.8]} 16. c4 {[%clk 0:02:01.7]} 16... Nb4 {[%clk 0:02:28.8]} 17.
Qh4 {[%clk 0:02:01.3]} 17... Nec6 {[%clk 0:02:22.2]} 18. Qh3 {[%clk 0:02:00.8]}
18... h6 {[%clk 0:02:05.8]} 19. Ne1 {[%clk 0:01:50.4]} 19... Na5 {[%clk
0:01:48.9]} 20. Rb1 {[%clk 0:01:38]} 20... Bb7 {[%clk 0:01:47.7]} 21. Bxb7
{[%clk 0:01:35.9]} 21... Rxb7 {[%clk 0:01:44.2]} 22. Ne4 {[%clk 0:01:36.5]}
22... Na2 {[%clk 0:01:11]} 23. Rxb7 {[%clk 0:01:25.6]} 23... Nxb7 {[%clk
0:01:11.9]} 24. Bd2 {[%clk 0:01:23.7]} 24... Nc3 {[%clk 0:01:11.9]} 25. f5
{[%clk 0:00:58.3]} 25... exf5 {[%clk 0:01:09.3]} 26. gxf5 {[%clk 0:00:56.3]}
26... gxf5 {[%clk 0:01:01.3]} 27. Ng3 {[%clk 0:00:28.5]} 27... Re8 {[%clk
0:00:20.6]} 28. Nxf5 {[%clk 0:00:26.4]} 28... Re6 {[%clk 0:00:19.8]} 29. Ng2
{[%clk 0:00:24.5]} 29... Rg6 {[%clk 0:00:14.6]} 30. Kh1 {[%clk 0:00:22.9]} 30...
Qe8 {[%clk 0:00:13.8]} 31. Nf4 {[%clk 0:00:20.5]} 31... Qc6+ {[%clk 0:00:13.6]}
32. Qf3 {[%clk 0:00:18.6]} 32... Qxf3+ {[%clk 0:00:13.2]} 33. Rxf3 {[%clk
0:00:19.5]} 33... Rg5 {[%clk 0:00:05.7]} 34. Nd5 {[%clk 0:00:19.3]} 34... Rg6
{[%clk 0:00:04.1]} 35. Nfe7+ {[%clk 0:00:17.6]} 35... Kh7 {[%clk 0:00:04.2]} 36.
Nxg6 {[%clk 0:00:17.8]} 36... fxg6 {[%clk 0:00:04.8]} 37. Nxc3 {[%clk
0:00:18.1]} 37... dxc3 {[%clk 0:00:04.8]} 38. Bxc3 {[%clk 0:00:19]} 38... Nd8
{[%clk 0:00:05.7]} 39. Kg2 {[%clk 0:00:17.2]} 39... Kg8 {[%clk 0:00:05.8]} 40.
d4 {[%clk 0:00:16.8]} 40... cxd4 {[%clk 0:00:06]} 41. Bxd4 {[%clk 0:00:17.7]}
41... Nc6 {[%clk 0:00:06.8]} 42. Bc3 {[%clk 0:00:17.7]} 42... Nxe5 {[%clk
0:00:05]} 43. Bxe5 {[%clk 0:00:17.2]} 43... Bxe5 {[%clk 0:00:05.2]} 44. c5
{[%clk 0:00:17.9]} 1-0

[Event "Early-Titled-Tuesday-Blitz-April-16-2024"]
[Site "Chess.com"]
[Date "2024.04.16"]
[Round "3"]
[White "RojonR"]
[Black "temus_galaktionov"]
[Result "0-1"]
[WhiteElo "2535"]
[BlackElo "2854"]
[TimeControl "180+1"]
[EndTime "8:29:09 PDT"]
[Termination "temus_galaktionov won on time"]

1. e4 {[%clk 0:03:00.9]} 1... c6 {[%clk 0:03:00.9]} 2. Nc3 {[%clk 0:03:00.5]}
2... g6 {[%clk 0:03:01]} 3. Qe2 {[%clk 0:02:59]} 3... d6 {[%clk 0:03:01.9]} 4.
f4 {[%clk 0:02:58.4]} 4... Bg7 {[%clk 0:03:02.6]} 5. Nf3 {[%clk 0:02:58.3]} 5...
Nd7 {[%clk 0:03:01.7]} 6. g3 {[%clk 0:02:58.3]} 6... e5 {[%clk 0:03:02.2]} 7.
Bg2 {[%clk 0:02:58.1]} 7... Ngf6 {[%clk 0:03:02.7]} 8. O-O {[%clk 0:02:57.7]}
8... O-O {[%clk 0:03:03]} 9. d3 {[%clk 0:02:57.8]} 9... Re8 {[%clk 0:03:02.3]}
10. f5 {[%clk 0:02:33.8]} 10... d5 {[%clk 0:03:01.2]} 11. Nh4 {[%clk 0:02:26.2]}
11... Qb6+ {[%clk 0:02:44.4]} 12. Kh1 {[%clk 0:02:24.1]} 12... dxe4 {[%clk
0:02:43.2]} 13. dxe4 {[%clk 0:02:21.1]} 13... Nc5 {[%clk 0:02:41]} 14. Rb1
{[%clk 0:01:56.5]} 14... Qa6 {[%clk 0:02:36.5]} 15. Qxa6 {[%clk 0:01:49.4]}
15... Nxa6 {[%clk 0:02:37.4]} 16. Bg5 {[%clk 0:01:44.1]} 16... Nd7 {[%clk
0:02:02.9]} 17. b4 {[%clk 0:01:33.9]} 17... f6 {[%clk 0:01:49.8]} 18. Be3 {[%clk
0:01:30.1]} 18... g5 {[%clk 0:01:49.8]} 19. Nf3 {[%clk 0:01:29.5]} 19... Bf8
{[%clk 0:01:49.8]} 20. b5 {[%clk 0:01:18.9]} 20... Nc7 {[%clk 0:01:48]} 21. Rfd1
{[%clk 0:01:11.5]} 21... Nc5 {[%clk 0:01:39.3]} 22. Bf1 {[%clk 0:01:08.1]} 22...
a6 {[%clk 0:01:31.1]} 23. Bc4+ {[%clk 0:00:52.8]} 23... Kg7 {[%clk 0:01:30.7]}
24. bxc6 {[%clk 0:00:38.6]} 24... bxc6 {[%clk 0:01:31.6]} 25. a4 {[%clk
0:00:38.1]} 25... a5 {[%clk 0:01:20.7]} 26. Rb6 {[%clk 0:00:33.5]} 26... Ba6
{[%clk 0:01:13.6]} 27. Bxa6 {[%clk 0:00:33.2]} 27... Rxa6 {[%clk 0:01:13.8]} 28.
Rdb1 {[%clk 0:00:29.9]} 28... Rea8 {[%clk 0:01:09.9]} 29. h4 {[%clk 0:00:24.3]}
29... g4 {[%clk 0:01:00.2]} 30. Nd2 {[%clk 0:00:24.4]} 30... Kf7 {[%clk
0:00:53.5]} 31. Nc4 {[%clk 0:00:22.5]} 31... Be7 {[%clk 0:00:45.5]} 32. Rxa6
{[%clk 0:00:18.9]} 32... Rxa6 {[%clk 0:00:46.4]} 33. Rb6 {[%clk 0:00:19]} 33...
Rxb6 {[%clk 0:00:44.4]} 34. Nxb6 {[%clk 0:00:19.9]} 34... Nb7 {[%clk 0:00:41.7]}
35. Nc4 {[%clk 0:00:16.5]} 35... Ne8 {[%clk 0:00:35.7]} 36. Bb6 {[%clk
0:00:14.7]} 36... Bb4 {[%clk 0:00:33.4]} 37. Nd1 {[%clk 0:00:15.3]} 37... Ned6
{[%clk 0:00:30.6]} 38. Nxd6+ {[%clk 0:00:10.8]} 38... Nxd6 {[%clk 0:00:30.5]}
39. c3 {[%clk 0:00:09]} 39... Ba3 {[%clk 0:00:28.4]} 40. Nf2 {[%clk 0:00:07.9]}
40... Nc4 {[%clk 0:00:27.8]} 41. Bc7 {[%clk 0:00:05.9]} 41... h5 {[%clk
0:00:27.8]} 42. Nd3 {[%clk 0:00:05]} 42... Ke7 {[%clk 0:00:24.8]} 43. Kg2 {[%clk
0:00:04.1]} 43... Kd7 {[%clk 0:00:24.3]} 44. Bb8 {[%clk 0:00:03]} 44... Nb6
{[%clk 0:00:20.8]} 45. Ba7 {[%clk 0:00:01]} 45... Nxa4 {[%clk 0:00:20.9]} 46. c4
{[%clk 0:00:01.1]} 46... Nb2 {[%clk 0:00:19.8]} 0-1

[Event "Early-Titled-Tuesday-Blitz-April-16-2024"]
[Site "Chess.com"]
[Date "2024.04.16"]
[Round "3"]
[White "kyuotbi"]
[Black "NiranjanNavalgund"]
[Result "0-1"]
[WhiteElo "2262"]
[BlackElo "2496"]
[TimeControl "180+1"]
[EndTime "8:29:10 PDT"]
[Termination "NiranjanNavalgund won on time"]

1. e4 {[%clk 0:03:00.9]} 1... c5 {[%clk 0:02:44.8]} 2. Nf3 {[%clk 0:03:00.8]}
2... a6 {[%clk 0:02:44]} 3. Nc3 {[%clk 0:02:56.1]} 3... g6 {[%clk 0:02:43.7]} 4.
d4 {[%clk 0:02:56]} 4... cxd4 {[%clk 0:02:44.1]} 5. Nxd4 {[%clk 0:02:49.9]} 5...
Bg7 {[%clk 0:02:43.2]} 6. Be3 {[%clk 0:02:49.6]} 6... Nc6 {[%clk 0:02:41.8]} 7.
Qd2 {[%clk 0:02:47.1]} 7... Nf6 {[%clk 0:02:41.6]} 8. f3 {[%clk 0:02:44.1]} 8...
O-O {[%clk 0:02:41.3]} 9. Bc4 {[%clk 0:02:43]} 9... b5 {[%clk 0:02:40.1]} 10.
Bb3 {[%clk 0:02:42.9]} 10... d5 {[%clk 0:02:39.4]} 11. Nxd5 {[%clk 0:02:34.4]}
11... Nxd4 {[%clk 0:02:38.9]} 12. Qxd4 {[%clk 0:02:24.5]} 12... Bb7 {[%clk
0:02:35.1]} 13. Nxf6+ {[%clk 0:02:15.9]} 13... Bxf6 {[%clk 0:02:35]} 14. Qxd8
{[%clk 0:02:16.4]} 14... Rfxd8 {[%clk 0:02:35.9]} 15. c3 {[%clk 0:02:14.4]}
15... b4 {[%clk 0:02:36.2]} 16. cxb4 {[%clk 0:02:05.8]} 16... Bxb2 {[%clk
0:02:35.7]} 17. Rb1 {[%clk 0:02:05.9]} 17... Bc3+ {[%clk 0:02:36]} 18. Ke2
{[%clk 0:02:06]} 18... a5 {[%clk 0:02:36.4]} 19. b5 {[%clk 0:02:03.6]} 19... a4
{[%clk 0:02:36.1]} 20. Bc4 {[%clk 0:02:02.1]} 20... Rac8 {[%clk 0:02:36]} 21.
Bd3 {[%clk 0:02:01.9]} 21... a3 {[%clk 0:02:35.7]} 22. Rhc1 {[%clk 0:01:59.8]}
22... Bb2 {[%clk 0:02:35.9]} 23. Rd1 {[%clk 0:01:44.3]} 23... Rc3 {[%clk
0:02:31]} 24. Rd2 {[%clk 0:01:16.7]} 24... Kf8 {[%clk 0:02:11.1]} 25. Bh6+
{[%clk 0:01:11.7]} 25... Ke8 {[%clk 0:02:09.9]} 26. Rbd1 {[%clk 0:01:07.9]}
26... Bc1 {[%clk 0:02:04.2]} 27. Bg7 {[%clk 0:00:32.2]} 27... Bxd2 {[%clk
0:01:55]} 28. Rxd2 {[%clk 0:00:32.2]} 28... f6 {[%clk 0:01:52.5]} 29. e5 {[%clk
0:00:32.4]} 29... fxe5 {[%clk 0:01:28.2]} 30. Bxe5 {[%clk 0:00:30.7]} 30... Rc5
{[%clk 0:01:28.3]} 31. f4 {[%clk 0:00:22]} 31... Bd5 {[%clk 0:01:27.9]} 32. Ke3
{[%clk 0:00:20.3]} 32... Bc4 {[%clk 0:01:19.1]} 33. Bd4 {[%clk 0:00:13.9]} 33...
Rcc8 {[%clk 0:01:10.2]} 34. Be4 {[%clk 0:00:10]} 34... Bxb5 {[%clk 0:01:06.1]}
35. g4 {[%clk 0:00:10]} 35... Rc1 {[%clk 0:00:59.5]} 36. h4 {[%clk 0:00:09.6]}
36... Re1+ {[%clk 0:00:59.5]} 37. Kf3 {[%clk 0:00:09.8]} 37... Rf1+ {[%clk
0:00:56.4]} 38. Kg3 {[%clk 0:00:07.9]} 38... Re1 {[%clk 0:00:53.7]} 39. Kf3
{[%clk 0:00:07.4]} 39... Rh1 {[%clk 0:00:50.6]} 40. h5 {[%clk 0:00:06.9]} 40...
gxh5 {[%clk 0:00:50.5]} 41. Bxh7 {[%clk 0:00:06.9]} 41... h4 {[%clk 0:00:48]}
42. Bg6+ {[%clk 0:00:04.6]} 42... Kf8 {[%clk 0:00:47.5]} 43. Be4 {[%clk
0:00:03.7]} 43... Rd6 {[%clk 0:00:46.2]} 44. g5 {[%clk 0:00:02.9]} 44... h3
{[%clk 0:00:44.5]} 45. Kg3 {[%clk 0:00:01.5]} 45... Re1 {[%clk 0:00:43.4]} 46.
Bf3 {[%clk 0:00:01.6]} 46... h2 {[%clk 0:00:43.2]} 47. Kxh2 {[%clk 0:00:01.5]}
47... Bc6 {[%clk 0:00:42.9]} 0-1